[Event "Titled Tuesday Blitz May 23 Late 2023"]
[White "Hakobyan, Aram"]
[Black "Bortnyk, Olexandr"]
[WhiteFideId "13306677"]
[BlackFideId "14120828"]
[WhiteElo "2584"]
[BlackElo "2734"]
[Result "0-1"]
[Round "09"]
[TimeControl "180+2"]
[Date "2023.05.23"]
[WhiteClock "0:00:08"]
[BlackClock "0:00:02"]

1. d4 {[%clk 0:03:00]}  d6 {[%clk 0:02:53]} 2. Nf3 {[%clk 0:03:01]}  Nf6 {[%clk 0:02:53]} 3. g3 {[%clk 0:03:02]}  g6 {[%clk 0:02:53]} 4. Bg2 {[%clk 0:03:03]}  Bg7 {[%clk 0:02:54]} 5. O-O {[%clk 0:03:03]}  O-O {[%clk 0:02:55]} 6. b3 {[%clk 0:03:04]}  a5 {[%clk 0:02:54]} 7. Nc3 {[%clk 0:03:01]}  Bf5 {[%clk 0:02:49]} 8. Nh4 {[%clk 0:03:00]}  Bc8 {[%clk 0:02:49]} 9. Bb2 {[%clk 0:02:59]}  Nc6 {[%clk 0:02:48]} 10. Nf3 {[%clk 0:02:56]}  Bf5 {[%clk 0:02:45]} 11. d5 {[%clk 0:02:55]}  Nb4 {[%clk 0:02:44]} 12. Nd4 {[%clk 0:02:55]}  Bd7 {[%clk 0:02:42]} 13. a3 {[%clk 0:02:56]}  Na6 {[%clk 0:02:42]} 14. e4 {[%clk 0:02:55]}  Qc8 {[%clk 0:02:18]} 15. Re1 {[%clk 0:02:54]}  c6 {[%clk 0:02:13]} 16. dxc6 {[%clk 0:02:52]}  bxc6 {[%clk 0:02:14]} 17. e5 {[%clk 0:02:32]}  dxe5 {[%clk 0:02:08]} 18. Rxe5 {[%clk 0:02:32]}  Re8 {[%clk 0:01:57]} 19. Rxa5 {[%clk 0:02:28]}  e5 {[%clk 0:01:35]} 20. Nde2 {[%clk 0:02:23]}  Bh3 {[%clk 0:01:28]} 21. Qf1 {[%clk 0:02:20]}  Bxg2 {[%clk 0:01:22]} 22. Qxg2 {[%clk 0:02:20]}  Qf5 {[%clk 0:01:21]} 23. Nd4 {[%clk 0:02:04]}  exd4 {[%clk 0:01:18]} 24. Rxf5 {[%clk 0:02:05]}  dxc3 {[%clk 0:01:18]} 25. Bxc3 {[%clk 0:01:59]}  gxf5 {[%clk 0:01:18]} 26. Rd1 {[%clk 0:01:47]}  Re6 {[%clk 0:01:12]} 27. Qf3 {[%clk 0:01:41]}  Nc7 {[%clk 0:01:03]} 28. a4 {[%clk 0:01:37]}  Ncd5 {[%clk 0:01:03]} 29. Bd4 {[%clk 0:01:36]}  Ne7 {[%clk 0:00:52]} 30. Bc5 {[%clk 0:01:32]}  Ng6 {[%clk 0:00:49]} 31. b4 {[%clk 0:01:25]}  Rxa4 {[%clk 0:00:23]} 32. Rd8+ {[%clk 0:01:25]}  Ne8 {[%clk 0:00:24]} 33. Qxf5 {[%clk 0:01:10]}  Ra1+ {[%clk 0:00:24]} 34. Kg2 {[%clk 0:01:10]}  Rae1 {[%clk 0:00:25]} 35. c4 {[%clk 0:01:03]}  Bf8 {[%clk 0:00:23]} 36. Bxf8 {[%clk 0:01:01]}  Kxf8 {[%clk 0:00:24]} 37. b5 {[%clk 0:00:58]}  cxb5 {[%clk 0:00:24]} 38. cxb5 {[%clk 0:00:54]}  R1e5 {[%clk 0:00:24]} 39. Qd3 {[%clk 0:00:50]}  Rb6 {[%clk 0:00:22]} 40. Qd7 {[%clk 0:00:37]}  Re7 {[%clk 0:00:17]} 41. Qd3 {[%clk 0:00:31]}  Re5 {[%clk 0:00:11]} 42. Qa3+ {[%clk 0:00:31]}  Kg8 {[%clk 0:00:07]} 43. Qa8 {[%clk 0:00:31]}  Kf8 {[%clk 0:00:07]} 44. Qa3+ {[%clk 0:00:27]}  Kg8 {[%clk 0:00:07]} 45. h4 {[%clk 0:00:28]}  h5 {[%clk 0:00:06]} 46. Qd3 {[%clk 0:00:27]}  Kf8 {[%clk 0:00:05]} 47. Qd7 {[%clk 0:00:27]}  Re7 {[%clk 0:00:05]} 48. Qd1 {[%clk 0:00:27]}  Rxb5 {[%clk 0:00:04]} 49. Qd3 {[%clk 0:00:25]}  Rbe5 {[%clk 0:00:04]} 50. Qc3 {[%clk 0:00:25]}  Kg8 {[%clk 0:00:04]} 51. Qf3 {[%clk 0:00:24]}  Kg7 {[%clk 0:00:04]} 52. Qc3 {[%clk 0:00:24]}  Nf6 {[%clk 0:00:05]} 53. Ra8 {[%clk 0:00:22]}  Re8 {[%clk 0:00:04]} 54. Ra6 {[%clk 0:00:21]}  R8e6 {[%clk 0:00:04]} 55. Ra8 {[%clk 0:00:21]}  Re2 {[%clk 0:00:05]} 56. Qc8 {[%clk 0:00:18]}  Re8 {[%clk 0:00:04]} 57. Qc4 {[%clk 0:00:17]}  Rxf2+ {[%clk 0:00:04]} 58. Kxf2 {[%clk 0:00:16]}  Rxa8 {[%clk 0:00:05]} 59. Qd4 {[%clk 0:00:16]}  Re8 {[%clk 0:00:05]} 60. Kg2 {[%clk 0:00:16]}  Re4 {[%clk 0:00:05]} 61. Qa1 {[%clk 0:00:16]}  Rg4 {[%clk 0:00:05]} 62. Kh3 {[%clk 0:00:15]}  Ne7 {[%clk 0:00:06]} 63. Qe5 {[%clk 0:00:15]}  Ng8 {[%clk 0:00:06]} 64. Qc3 {[%clk 0:00:13]}  Nh6 {[%clk 0:00:06]} 65. Qe5 {[%clk 0:00:14]}  Rg6 {[%clk 0:00:07]} 66. Kg2 {[%clk 0:00:10]}  Ng4 {[%clk 0:00:06]} 67. Qd4 {[%clk 0:00:10]}  Nh6 {[%clk 0:00:03]} 68. Kh3 {[%clk 0:00:11]}  Rxg3+ {[%clk 0:00:02]} 69. Kh2 {[%clk 0:00:12]}  Rg4 {[%clk 0:00:03]} 70. Qa1 {[%clk 0:00:11]}  Rxh4+ {[%clk 0:00:03]} 71. Kg3 {[%clk 0:00:12]}  Rg4+ {[%clk 0:00:04]} 72. Kh3 {[%clk 0:00:12]}  Nf5 {[%clk 0:00:04]} 73. Qa8 {[%clk 0:00:12]}  Kg6 {[%clk 0:00:05]} 74. Qh8 {[%clk 0:00:12]}  Rg3+ {[%clk 0:00:04]} 75. Kh2 {[%clk 0:00:12]}  Re3 {[%clk 0:00:04]} 76. Kg2 {[%clk 0:00:11]}  Re8 {[%clk 0:00:02]} 77. Qxh5+ {[%clk 0:00:08]}  Nxh5 {[%clk 0:00:02]} 0-1


[Site "https://www.chess.com"]

[Event "Titled Tuesday Blitz May 23 Late 2023"]
[White "Svane, Rasmus"]
[Black "Iliaguev, Nisim"]
[WhiteFideId "4657101"]
[BlackFideId "2817276"]
[WhiteElo "2601"]
[BlackElo "2241"]
[Result "1-0"]
[Round "09"]
[TimeControl "180+2"]
[Date "2023.05.23"]
[WhiteClock "0:01:37"]
[BlackClock "0:02:08"]

1. Nf3 {[%clk 0:03:00]}  d5 {[%clk 0:02:59]} 2. g3 {[%clk 0:03:01]}  Nd7 {[%clk 0:02:58]} 3. d4 {[%clk 0:03:00]}  e6 {[%clk 0:02:57]} 4. Bg2 {[%clk 0:02:58]}  b5 {[%clk 0:02:56]} 5. O-O {[%clk 0:02:48]}  Ngf6 {[%clk 0:02:48]} 6. c3 {[%clk 0:02:24]}  Be7 {[%clk 0:02:46]} 7. Bg5 {[%clk 0:02:19]}  O-O {[%clk 0:02:42]} 8. Nbd2 {[%clk 0:02:15]}  Bb7 {[%clk 0:02:37]} 9. b4 {[%clk 0:02:08]}  a5 {[%clk 0:02:32]} 10. a3 {[%clk 0:02:09]}  a4 {[%clk 0:02:31]} 11. Ne1 {[%clk 0:02:05]}  e5 {[%clk 0:02:29]} 12. Nd3 {[%clk 0:01:58]}  e4 {[%clk 0:02:26]} 13. Nc5 {[%clk 0:01:58]}  Nxc5 {[%clk 0:02:22]} 14. bxc5 {[%clk 0:01:56]}  c6 {[%clk 0:02:22]} 15. f3 {[%clk 0:01:52]}  exf3 {[%clk 0:02:19]} 16. Bxf3 {[%clk 0:01:51]}  Bc8 {[%clk 0:02:20]} 17. Bxf6 {[%clk 0:01:48]}  Bxf6 {[%clk 0:02:19]} 18. e4 {[%clk 0:01:49]}  Be6 {[%clk 0:02:16]} 19. Qc2 {[%clk 0:01:45]}  Bg5 {[%clk 0:02:13]} 20. Rae1 {[%clk 0:01:37]}  Qd7 {[%clk 0:02:08]} 1-0


[Site "https://www.chess.com"]

[Event "Titled Tuesday Blitz May 23 Late 2023"]
[White "Duda, Jan-Krzysztof"]
[Black "Krzyzanowski, Marcin"]
[WhiteFideId "1170546"]
[BlackFideId "1132199"]
[WhiteElo "2790"]
[BlackElo "2471"]
[Result "0-1"]
[Round "09"]
[TimeControl "180+2"]
[Date "2023.05.23"]
[WhiteClock "0:00:01"]
[BlackClock "0:00:16"]

1. d4 {[%clk 0:02:58]}  Nf6 {[%clk 0:02:59]} 2. c4 {[%clk 0:02:58]}  d6 {[%clk 0:02:57]} 3. Nc3 {[%clk 0:02:56]}  e5 {[%clk 0:02:57]} 4. dxe5 {[%clk 0:02:52]}  dxe5 {[%clk 0:02:58]} 5. Qxd8+ {[%clk 0:02:52]}  Kxd8 {[%clk 0:02:58]} 6. Nf3 {[%clk 0:02:53]}  Nfd7 {[%clk 0:02:46]} 7. g4 {[%clk 0:02:52]}  c6 {[%clk 0:02:40]} 8. g5 {[%clk 0:02:44]}  a5 {[%clk 0:02:34]} 9. Be3 {[%clk 0:02:39]}  Na6 {[%clk 0:02:31]} 10. O-O-O {[%clk 0:02:38]}  Kc7 {[%clk 0:02:25]} 11. Ne4 {[%clk 0:02:37]}  f5 {[%clk 0:01:58]} 12. gxf6 {[%clk 0:02:35]}  gxf6 {[%clk 0:01:59]} 13. Bh3 {[%clk 0:02:08]}  Nac5 {[%clk 0:01:56]} 14. Nxc5 {[%clk 0:01:34]}  Nxc5 {[%clk 0:01:54]} 15. Bxc8 {[%clk 0:01:33]}  Rxc8 {[%clk 0:01:53]} 16. Rhg1 {[%clk 0:01:34]}  Ne6 {[%clk 0:01:46]} 17. Nh4 {[%clk 0:01:31]}  a4 {[%clk 0:01:44]} 18. Nf5 {[%clk 0:01:30]}  a3 {[%clk 0:01:42]} 19. b3 {[%clk 0:01:30]}  Bb4 {[%clk 0:01:42]} 20. h4 {[%clk 0:01:24]}  Rhg8 {[%clk 0:01:40]} 21. h5 {[%clk 0:01:24]}  Rcd8 {[%clk 0:01:33]} 22. Rg3 {[%clk 0:00:54]}  Rxg3 {[%clk 0:01:26]} 23. fxg3 {[%clk 0:00:53]}  Rg8 {[%clk 0:01:22]} 24. Kc2 {[%clk 0:00:51]}  Bc5 {[%clk 0:01:17]} 25. Bc1 {[%clk 0:00:18]}  Nd4+ {[%clk 0:01:13]} 26. Nxd4 {[%clk 0:00:19]}  Bxd4 {[%clk 0:01:14]} 27. Rf1 {[%clk 0:00:19]}  e4 {[%clk 0:00:57]} 28. Rf4 {[%clk 0:00:19]}  Be5 {[%clk 0:00:55]} 29. Rxe4 {[%clk 0:00:19]}  Rxg3 {[%clk 0:00:55]} 30. Re3 {[%clk 0:00:08]}  Rg2 {[%clk 0:00:52]} 31. h6 {[%clk 0:00:04]}  Rh2 {[%clk 0:00:48]} 32. Kd3 {[%clk 0:00:03]}  Rh1 {[%clk 0:00:43]} 33. Bxa3 {[%clk 0:00:03]}  Rxh6 {[%clk 0:00:43]} 34. Rf3 {[%clk 0:00:03]}  Rh1 {[%clk 0:00:42]} 35. Be7 {[%clk 0:00:03]}  Rh6 {[%clk 0:00:34]} 36. a4 {[%clk 0:00:04]}  Kd7 {[%clk 0:00:35]} 37. Bc5 {[%clk 0:00:04]}  Rh1 {[%clk 0:00:33]} 38. b4 {[%clk 0:00:03]}  h5 {[%clk 0:00:32]} 39. a5 {[%clk 0:00:04]}  h4 {[%clk 0:00:32]} 40. Rf5 {[%clk 0:00:02]}  h3 {[%clk 0:00:31]} 41. Rh5 {[%clk 0:00:03]}  h2 {[%clk 0:00:31]} 42. Ke4 {[%clk 0:00:03]}  Ke6 {[%clk 0:00:31]} 43. Rh7 {[%clk 0:00:03]}  f5+ {[%clk 0:00:30]} 44. Ke3 {[%clk 0:00:03]}  Rb1 {[%clk 0:00:28]} 45. Rh6+ {[%clk 0:00:03]}  Kf7 {[%clk 0:00:28]} 46. b5 {[%clk 0:00:03]}  cxb5 {[%clk 0:00:24]} 47. cxb5 {[%clk 0:00:04]}  h1=Q {[%clk 0:00:24]} 48. Rxh1 {[%clk 0:00:03]}  Rxh1 {[%clk 0:00:24]} 49. a6 {[%clk 0:00:04]}  bxa6 {[%clk 0:00:25]} 50. bxa6 {[%clk 0:00:04]}  Ra1 {[%clk 0:00:23]} 51. a7 {[%clk 0:00:04]}  Ke6 {[%clk 0:00:23]} 52. Kd3 {[%clk 0:00:05]}  Kd5 {[%clk 0:00:23]} 53. Bb6 {[%clk 0:00:05]}  f4 {[%clk 0:00:20]} 54. Bf2 {[%clk 0:00:05]}  Ra3+ {[%clk 0:00:20]} 55. Kc2 {[%clk 0:00:05]}  Kc4 {[%clk 0:00:20]} 56. Bb6 {[%clk 0:00:04]}  Bd4 {[%clk 0:00:20]} 57. Bc7 {[%clk 0:00:04]}  Ra2+ {[%clk 0:00:20]} 58. Kd1 {[%clk 0:00:03]}  Rxa7 {[%clk 0:00:17]} 59. Bxf4 {[%clk 0:00:03]}  Ra2 {[%clk 0:00:16]} 60. Ke1 {[%clk 0:00:03]}  Kd5 {[%clk 0:00:15]} 61. Kf1 {[%clk 0:00:03]}  Ke4 {[%clk 0:00:16]} 62. Bh6 {[%clk 0:00:03]}  Be3 {[%clk 0:00:17]} 63. Bg7 {[%clk 0:00:03]}  Rc2 {[%clk 0:00:16]} 64. Bf6 {[%clk 0:00:02]}  Rc1+ {[%clk 0:00:16]} 65. Kg2 {[%clk 0:00:03]}  Re1 {[%clk 0:00:16]} 66. Kh3 {[%clk 0:00:03]}  Rxe2 {[%clk 0:00:16]} 67. Kg4 {[%clk 0:00:01]}  Rg2+ {[%clk 0:00:16]} 0-1


[Site "https://www.chess.com"]

[Event "Titled Tuesday Blitz May 23 Late 2023"]
[White "Andreikin, Dmitry"]
[Black "Remizov, Yaroslav"]
[WhiteFideId "4158814"]
[BlackFideId "34134015"]
[WhiteElo "2736"]
[BlackElo "2400"]
[Result "0-1"]
[Round "09"]
[TimeControl "180+2"]
[Date "2023.05.23"]
[WhiteClock "0:00:04"]
[BlackClock "0:00:09"]

1. e4 {[%clk 0:02:56]}  c5 {[%clk 0:02:59]} 2. Nc3 {[%clk 0:02:54]}  e6 {[%clk 0:02:53]} 3. Nge2 {[%clk 0:02:52]}  Nc6 {[%clk 0:02:51]} 4. g3 {[%clk 0:02:51]}  d6 {[%clk 0:02:43]} 5. Bg2 {[%clk 0:02:50]}  Nge7 {[%clk 0:02:38]} 6. O-O {[%clk 0:02:48]}  g6 {[%clk 0:02:28]} 7. d4 {[%clk 0:02:47]}  cxd4 {[%clk 0:02:28]} 8. Nxd4 {[%clk 0:02:48]}  a6 {[%clk 0:02:28]} 9. Be3 {[%clk 0:02:12]}  Bg7 {[%clk 0:02:26]} 10. Qd2 {[%clk 0:02:12]}  Ne5 {[%clk 0:02:02]} 11. b3 {[%clk 0:01:56]}  Ng4 {[%clk 0:01:56]} 12. Rad1 {[%clk 0:01:49]}  Nxe3 {[%clk 0:01:51]} 13. Qxe3 {[%clk 0:01:50]}  O-O {[%clk 0:01:51]} 14. Nce2 {[%clk 0:01:47]}  Qc7 {[%clk 0:01:48]} 15. c4 {[%clk 0:01:46]}  Bd7 {[%clk 0:01:44]} 16. h4 {[%clk 0:01:46]}  b5 {[%clk 0:01:40]} 17. e5 {[%clk 0:01:30]}  dxe5 {[%clk 0:01:35]} 18. Bxa8 {[%clk 0:01:29]}  exd4 {[%clk 0:01:32]} 19. Qf3 {[%clk 0:01:30]}  Nc6 {[%clk 0:01:18]} 20. Bxc6 {[%clk 0:01:10]}  Bxc6 {[%clk 0:01:19]} 21. Qd3 {[%clk 0:01:10]}  e5 {[%clk 0:01:18]} 22. Rc1 {[%clk 0:00:57]}  b4 {[%clk 0:01:09]} 23. Qd2 {[%clk 0:00:49]}  Qd7 {[%clk 0:01:01]} 24. Kh2 {[%clk 0:00:44]}  Qg4 {[%clk 0:00:59]} 25. Ng1 {[%clk 0:00:41]}  a5 {[%clk 0:00:51]} 26. c5 {[%clk 0:00:40]}  e4 {[%clk 0:00:47]} 27. Qg5 {[%clk 0:00:35]}  Qd7 {[%clk 0:00:43]} 28. Nh3 {[%clk 0:00:31]}  h6 {[%clk 0:00:39]} 29. Qf4 {[%clk 0:00:31]}  d3 {[%clk 0:00:37]} 30. Qd6 {[%clk 0:00:31]}  Qc8 {[%clk 0:00:31]} 31. Nf4 {[%clk 0:00:26]}  Rd8 {[%clk 0:00:30]} 32. Qe7 {[%clk 0:00:25]}  Rd7 {[%clk 0:00:24]} 33. Nxg6 {[%clk 0:00:21]}  fxg6 {[%clk 0:00:21]} 34. Qe6+ {[%clk 0:00:22]}  Kh7 {[%clk 0:00:20]} 35. h5 {[%clk 0:00:23]}  gxh5 {[%clk 0:00:17]} 36. Rc4 {[%clk 0:00:22]}  Kh8 {[%clk 0:00:12]} 37. Qf5 {[%clk 0:00:11]}  Qe8 {[%clk 0:00:12]} 38. Re1 {[%clk 0:00:10]}  Rf7 {[%clk 0:00:12]} 39. Qh3 {[%clk 0:00:09]}  Rxf2+ {[%clk 0:00:10]} 40. Kg1 {[%clk 0:00:10]}  Rf8 {[%clk 0:00:09]} 41. Rf1 {[%clk 0:00:07]}  e3 {[%clk 0:00:09]} 42. Rxf8+ {[%clk 0:00:06]}  Qxf8 {[%clk 0:00:09]} 43. Rf4 {[%clk 0:00:07]}  Qd8 {[%clk 0:00:09]} 44. Qe6 {[%clk 0:00:04]}  d2 {[%clk 0:00:09]} 0-1


[Site "https://www.chess.com"]

[Event "Titled Tuesday Blitz May 23 Late 2023"]
[White "Sjugirov, Sanan"]
[Black "Mekhitarian, Krikor Sevag"]
[WhiteFideId "4189302"]
[BlackFideId "2107660"]
[WhiteElo "2569"]
[BlackElo "2604"]
[Result "1-0"]
[Round "09"]
[TimeControl "180+2"]
[Date "2023.05.23"]
[WhiteClock "0:01:32"]
[BlackClock "0:00:41"]

1. d4 {[%clk 0:02:57]}  d5 {[%clk 0:02:58]} 2. c4 {[%clk 0:02:57]}  e6 {[%clk 0:02:59]} 3. e3 {[%clk 0:02:55]}  Nf6 {[%clk 0:02:57]} 4. Nc3 {[%clk 0:02:54]}  b6 {[%clk 0:02:52]} 5. cxd5 {[%clk 0:02:54]}  exd5 {[%clk 0:02:52]} 6. Nf3 {[%clk 0:02:50]}  Bd6 {[%clk 0:02:50]} 7. Bb5+ {[%clk 0:02:47]}  c6 {[%clk 0:02:45]} 8. Bd3 {[%clk 0:02:48]}  O-O {[%clk 0:02:46]} 9. Ne5 {[%clk 0:02:42]}  Bxe5 {[%clk 0:02:15]} 10. dxe5 {[%clk 0:02:42]}  Nfd7 {[%clk 0:02:16]} 11. f4 {[%clk 0:02:38]}  Nc5 {[%clk 0:02:16]} 12. Be2 {[%clk 0:02:32]}  f6 {[%clk 0:02:14]} 13. exf6 {[%clk 0:02:32]}  Qxf6 {[%clk 0:02:06]} 14. O-O {[%clk 0:02:17]}  Ba6 {[%clk 0:01:52]} 15. Qc2 {[%clk 0:01:57]}  Bxe2 {[%clk 0:01:45]} 16. Nxe2 {[%clk 0:01:58]}  Nbd7 {[%clk 0:01:40]} 17. Nd4 {[%clk 0:01:55]}  Rac8 {[%clk 0:01:38]} 18. b4 {[%clk 0:01:54]}  Ne4 {[%clk 0:01:34]} 19. Bb2 {[%clk 0:01:54]}  Qd6 {[%clk 0:01:13]} 20. f5 {[%clk 0:01:44]}  c5 {[%clk 0:01:03]} 21. bxc5 {[%clk 0:01:41]}  bxc5 {[%clk 0:00:57]} 22. Ne6 {[%clk 0:01:38]}  Rf7 {[%clk 0:00:58]} 23. Rad1 {[%clk 0:01:35]}  Nf8 {[%clk 0:00:41]} 24. Qxe4 {[%clk 0:01:32]} 1-0


[Site "https://www.chess.com"]

[Event "Titled Tuesday Blitz May 23 Late 2023"]
[White "Schmakel, Sam"]
[Black "Zakhartsov, Vladimir"]
[WhiteFideId "2039311"]
[BlackFideId "4145097"]
[WhiteElo "2356"]
[BlackElo "2495"]
[Result "0-1"]
[Round "09"]
[TimeControl "180+2"]
[Date "2023.05.23"]
[WhiteClock "0:00:00"]
[BlackClock "0:00:13"]

1. d4 {[%clk 0:03:00]}  Nf6 {[%clk 0:02:53]} 2. c4 {[%clk 0:03:01]}  e6 {[%clk 0:02:54]} 3. Nf3 {[%clk 0:03:01]}  d5 {[%clk 0:02:50]} 4. Nc3 {[%clk 0:03:02]}  Nbd7 {[%clk 0:02:48]} 5. cxd5 {[%clk 0:02:59]}  exd5 {[%clk 0:02:48]} 6. Bg5 {[%clk 0:02:59]}  c6 {[%clk 0:02:48]} 7. e3 {[%clk 0:02:56]}  Be7 {[%clk 0:02:48]} 8. Bd3 {[%clk 0:02:56]}  Ne4 {[%clk 0:02:47]} 9. Bf4 {[%clk 0:02:49]}  Ndf6 {[%clk 0:02:45]} 10. O-O {[%clk 0:02:44]}  O-O {[%clk 0:02:44]} 11. Qc2 {[%clk 0:02:39]}  Bf5 {[%clk 0:02:35]} 12. h3 {[%clk 0:02:21]}  h6 {[%clk 0:02:31]} 13. Ne5 {[%clk 0:02:20]}  Bh7 {[%clk 0:02:30]} 14. Ne2 {[%clk 0:02:07]}  Nd6 {[%clk 0:02:25]} 15. Bxh7+ {[%clk 0:02:06]}  Nxh7 {[%clk 0:02:26]} 16. Bh2 {[%clk 0:02:04]}  Re8 {[%clk 0:02:25]} 17. a4 {[%clk 0:01:48]}  a5 {[%clk 0:02:24]} 18. Nd3 {[%clk 0:01:45]}  Ne4 {[%clk 0:02:02]} 19. Nc3 {[%clk 0:01:34]}  Nhf6 {[%clk 0:01:54]} 20. Nxe4 {[%clk 0:01:32]}  Nxe4 {[%clk 0:01:53]} 21. f3 {[%clk 0:01:31]}  Nd6 {[%clk 0:01:50]} 22. b3 {[%clk 0:01:30]}  Bg5 {[%clk 0:01:49]} 23. f4 {[%clk 0:01:29]}  Bf6 {[%clk 0:01:44]} 24. Rae1 {[%clk 0:01:27]}  Ne4 {[%clk 0:01:44]} 25. Nc5 {[%clk 0:01:25]}  Nxc5 {[%clk 0:01:37]} 26. Qxc5 {[%clk 0:01:26]}  Re4 {[%clk 0:01:36]} 27. Bg3 {[%clk 0:01:25]}  Be7 {[%clk 0:01:31]} 28. Qc2 {[%clk 0:01:24]}  Qb6 {[%clk 0:01:31]} 29. Re2 {[%clk 0:01:13]}  Re8 {[%clk 0:01:27]} 30. Bf2 {[%clk 0:01:05]}  Bb4 {[%clk 0:01:26]} 31. Rd1 {[%clk 0:00:55]}  Qc7 {[%clk 0:01:20]} 32. Qd3 {[%clk 0:00:55]}  Qe7 {[%clk 0:01:18]} 33. Rc1 {[%clk 0:00:50]}  Rxf4 {[%clk 0:01:17]} 34. Be1 {[%clk 0:00:47]}  Re4 {[%clk 0:01:14]} 35. Bxb4 {[%clk 0:00:47]}  Qxb4 {[%clk 0:01:13]} 36. Rf1 {[%clk 0:00:47]}  Qe7 {[%clk 0:01:08]} 37. Rf3 {[%clk 0:00:42]}  g6 {[%clk 0:01:08]} 38. Qd2 {[%clk 0:00:42]}  h5 {[%clk 0:01:07]} 39. Qxa5 {[%clk 0:00:39]}  Rxd4 {[%clk 0:01:06]} 40. exd4 {[%clk 0:00:32]}  Qxe2 {[%clk 0:01:05]} 41. Qc7 {[%clk 0:00:32]}  Re7 {[%clk 0:00:59]} 42. Qb8+ {[%clk 0:00:30]}  Kg7 {[%clk 0:00:57]} 43. Qf4 {[%clk 0:00:30]}  Qe1+ {[%clk 0:00:53]} 44. Kh2 {[%clk 0:00:30]}  Qe6 {[%clk 0:00:54]} 45. a5 {[%clk 0:00:29]}  Rd7 {[%clk 0:00:44]} 46. b4 {[%clk 0:00:20]}  Qd6 {[%clk 0:00:44]} 47. Qxd6 {[%clk 0:00:20]}  Rxd6 {[%clk 0:00:45]} 48. Ra3 {[%clk 0:00:12]}  Rd8 {[%clk 0:00:39]} 49. Kg3 {[%clk 0:00:11]}  Ra8 {[%clk 0:00:34]} 50. Re3 {[%clk 0:00:09]}  Kf6 {[%clk 0:00:35]} 51. h4 {[%clk 0:00:08]}  Ra6 {[%clk 0:00:28]} 52. Rc3 {[%clk 0:00:08]}  Ke6 {[%clk 0:00:27]} 53. Kf4 {[%clk 0:00:08]}  f6 {[%clk 0:00:27]} 54. g4 {[%clk 0:00:08]}  hxg4 {[%clk 0:00:26]} 55. Kxg4 {[%clk 0:00:09]}  Ra8 {[%clk 0:00:27]} 56. Re3+ {[%clk 0:00:09]}  Kf7 {[%clk 0:00:26]} 57. Rc3 {[%clk 0:00:08]}  Re8 {[%clk 0:00:22]} 58. Kf3 {[%clk 0:00:02]}  Re4 {[%clk 0:00:21]} 59. b5 {[%clk 0:00:03]}  cxb5 {[%clk 0:00:14]} 60. Rc7+ {[%clk 0:00:02]}  Ke6 {[%clk 0:00:14]} 61. Rxb7 {[%clk 0:00:03]}  Rxd4 {[%clk 0:00:14]} 62. Rxb5 {[%clk 0:00:03]}  Rxh4 {[%clk 0:00:14]} 63. Rb6+ {[%clk 0:00:02]}  Ke5 {[%clk 0:00:13]} 64. a6 {[%clk 0:00:02]}  Ra4 {[%clk 0:00:13]} 65. Ke3 {[%clk 0:00:02]}  Ra3+ {[%clk 0:00:14]} 66. Kd2 {[%clk 0:00:03]}  g5 {[%clk 0:00:14]} 67. Rc6 {[%clk 0:00:03]}  g4 {[%clk 0:00:14]} 68. Rb6 {[%clk 0:00:00]}  f5 {[%clk 0:00:13]} 0-1


[Site "https://www.chess.com"]

[Event "Titled Tuesday Blitz May 23 Late 2023"]
[White "Papasimakopoulos, Alexandros"]
[Black "Kramnik, Vladimir"]
[WhiteFideId "4244125"]
[BlackFideId "4101588"]
[WhiteElo "2359"]
[BlackElo "2703"]
[Result "0-1"]
[Round "09"]
[TimeControl "180+2"]
[Date "2023.05.23"]
[WhiteClock "0:00:13"]
[BlackClock "0:00:43"]

1. d4 {[%clk 0:03:00]}  Nf6 {[%clk 0:02:58]} 2. c4 {[%clk 0:03:01]}  e6 {[%clk 0:02:58]} 3. Nc3 {[%clk 0:03:02]}  d5 {[%clk 0:02:58]} 4. cxd5 {[%clk 0:03:02]}  exd5 {[%clk 0:02:58]} 5. Bg5 {[%clk 0:03:02]}  c6 {[%clk 0:02:59]} 6. e3 {[%clk 0:03:02]}  h6 {[%clk 0:02:59]} 7. Bh4 {[%clk 0:03:02]}  Bd6 {[%clk 0:03:00]} 8. Bd3 {[%clk 0:03:02]}  O-O {[%clk 0:02:59]} 9. Qc2 {[%clk 0:03:02]}  Re8 {[%clk 0:02:56]} 10. Nf3 {[%clk 0:03:01]}  Be6 {[%clk 0:02:55]} 11. O-O {[%clk 0:02:59]}  Nbd7 {[%clk 0:02:55]} 12. Rfe1 {[%clk 0:02:49]}  Rc8 {[%clk 0:02:51]} 13. e4 {[%clk 0:02:49]}  dxe4 {[%clk 0:02:49]} 14. Nxe4 {[%clk 0:02:50]}  Be7 {[%clk 0:02:48]} 15. Nc5 {[%clk 0:02:35]}  Nxc5 {[%clk 0:02:41]} 16. dxc5 {[%clk 0:02:36]}  Nd5 {[%clk 0:02:16]} 17. Bxe7 {[%clk 0:02:35]}  Rxe7 {[%clk 0:02:16]} 18. Rad1 {[%clk 0:02:29]}  Qa5 {[%clk 0:02:14]} 19. a3 {[%clk 0:02:26]}  Rce8 {[%clk 0:02:12]} 20. Bc4 {[%clk 0:01:58]}  Qxc5 {[%clk 0:01:57]} 21. b4 {[%clk 0:01:58]}  Qb6 {[%clk 0:01:55]} 22. Ba2 {[%clk 0:01:44]}  a5 {[%clk 0:01:48]} 23. Bb1 {[%clk 0:01:37]}  Nf6 {[%clk 0:01:43]} 24. Qc5 {[%clk 0:01:35]}  Qxc5 {[%clk 0:01:39]} 25. bxc5 {[%clk 0:01:36]}  Nd7 {[%clk 0:01:30]} 26. Rc1 {[%clk 0:01:33]}  Bg4 {[%clk 0:01:15]} 27. Rxe7 {[%clk 0:01:28]}  Rxe7 {[%clk 0:01:15]} 28. h3 {[%clk 0:01:24]}  Bxf3 {[%clk 0:01:13]} 29. gxf3 {[%clk 0:01:25]}  g6 {[%clk 0:01:11]} 30. f4 {[%clk 0:01:20]}  Kg7 {[%clk 0:01:08]} 31. Kg2 {[%clk 0:01:19]}  Re2 {[%clk 0:01:03]} 32. Rc3 {[%clk 0:01:01]}  Rb2 {[%clk 0:00:59]} 33. Bd3 {[%clk 0:01:02]}  Nf6 {[%clk 0:00:57]} 34. Rc4 {[%clk 0:00:26]}  Rb3 {[%clk 0:00:53]} 35. Bc2 {[%clk 0:00:25]}  Rxa3 {[%clk 0:00:51]} 36. h4 {[%clk 0:00:25]}  Nd5 {[%clk 0:00:47]} 37. f5 {[%clk 0:00:23]}  Rc3 {[%clk 0:00:44]} 38. Rxc3 {[%clk 0:00:18]}  Nxc3 {[%clk 0:00:44]} 39. fxg6 {[%clk 0:00:19]}  fxg6 {[%clk 0:00:43]} 40. Kf3 {[%clk 0:00:13]}  a4 {[%clk 0:00:43]} 0-1


[Site "https://www.chess.com"]